[Event "*** SCC Grand Prix: Titled Tuesday Blitz"]
[Site "Chess.com"]
[Date "2020.07.21"]
[Round "1"]
[White "CarlosAlbornoz"]
[Black "51616516516"]
[Result "1-0"]
[WhiteElo "2804"]
[BlackElo "2403"]
[TimeControl "180+1"]
[EndTime "10:04:07 PDT"]
[Termination "CarlosAlbornoz won by resignation"]

1. e4 {[%clk 0:03:00.9]} 1... c5 {[%clk 0:02:59.7]} 2. Nf3 {[%clk 0:03:01]} 2...
g6 {[%clk 0:02:57.9]} 3. c4 {[%clk 0:03:00.5]} 3... Nc6 {[%clk 0:02:57.4]} 4. d4
{[%clk 0:03:00.9]} 4... cxd4 {[%clk 0:02:58.3]} 5. Nxd4 {[%clk 0:03:01.8]} 5...
Nf6 {[%clk 0:02:58.7]} 6. Nc3 {[%clk 0:03:01.6]} 6... d6 {[%clk 0:02:58.2]} 7.
Be2 {[%clk 0:03:01.2]} 7... Bg7 {[%clk 0:02:58.6]} 8. Be3 {[%clk 0:03:00.8]}
8... O-O {[%clk 0:02:58.9]} 9. O-O {[%clk 0:03:00.9]} 9... Bd7 {[%clk
0:02:59.4]} 10. Qd2 {[%clk 0:03:00.7]} 10... Nxd4 {[%clk 0:02:59.3]} 11. Bxd4
{[%clk 0:03:00.7]} 11... Bc6 {[%clk 0:03:00.2]} 12. f3 {[%clk 0:03:01.1]} 12...
a5 {[%clk 0:03:00.6]} 13. b3 {[%clk 0:03:01.1]} 13... Nd7 {[%clk 0:03:00.6]} 14.
Be3 {[%clk 0:03:01.5]} 14... Nc5 {[%clk 0:03:01.2]} 15. Rab1 {[%clk 0:03:01.3]}
15... Qb6 {[%clk 0:03:00.4]} 16. Rfc1 {[%clk 0:03:01]} 16... Rfc8 {[%clk
0:02:59.4]} 17. Rc2 {[%clk 0:03:00.8]} 17... Qb4 {[%clk 0:02:54]} 18. Qc1 {[%clk
0:02:49.2]} 18... f5 {[%clk 0:01:46.7]} 19. exf5 {[%clk 0:02:32.1]} 19... gxf5
{[%clk 0:01:47.6]} 20. a3 {[%clk 0:02:31.8]} 20... Nxb3 {[%clk 0:01:03.7]} 21.
Qb2 {[%clk 0:02:20.5]} 21... Bxc3 {[%clk 0:00:52.9]} 22. Rxc3 {[%clk 0:02:18.8]}
1-0

[Event "*** SCC Grand Prix: Titled Tuesday Blitz"]
[Site "Chess.com"]
[Date "2020.07.21"]
[Round "1"]
[White "if_name_main_a"]
[Black "OK97"]
[Result "0-1"]
[WhiteElo "2404"]
[BlackElo "2806"]
[TimeControl "180+1"]
[EndTime "10:04:09 PDT"]
[Termination "OK97 won by resignation"]

1. c4 {[%clk 0:03:00.9]} 1... g6 {[%clk 0:02:55.7]} 2. d4 {[%clk 0:03:00.3]}
2... Bg7 {[%clk 0:02:55.2]} 3. e4 {[%clk 0:03:00.6]} 3... e6 {[%clk 0:02:55.3]}
4. Nc3 {[%clk 0:02:57.4]} 4... Ne7 {[%clk 0:02:55.8]} 5. f4 {[%clk 0:02:54.7]}
5... d5 {[%clk 0:02:49.3]} 6. e5 {[%clk 0:02:29.3]} 6... c5 {[%clk 0:02:40.2]}
7. cxd5 {[%clk 0:02:18.6]} 7... exd5 {[%clk 0:02:32.2]} 8. dxc5 {[%clk
0:02:18.9]} 8... O-O {[%clk 0:02:23.2]} 9. Be3 {[%clk 0:02:16.1]} 9... Nbc6
{[%clk 0:02:21]} 10. Nf3 {[%clk 0:02:14.5]} 10... Bg4 {[%clk 0:02:19.8]} 11. Bf2
{[%clk 0:01:56.5]} 11... d4 {[%clk 0:02:05.9]} 12. Ne4 {[%clk 0:01:55]} 12...
Nd5 {[%clk 0:02:00.3]} 13. g3 {[%clk 0:01:37.8]} 13... Qa5+ {[%clk 0:01:56.6]}
14. Ned2 {[%clk 0:01:30.7]} 14... Ne3 {[%clk 0:01:52.3]} 15. Qb3 {[%clk
0:01:09.6]} 15... Bxf3 {[%clk 0:01:50]} 16. Rg1 {[%clk 0:00:56.2]} 16... Bd5
{[%clk 0:01:47.8]} 17. Qd3 {[%clk 0:00:52]} 17... Nb4 {[%clk 0:01:45.8]} 0-1

[Event "*** SCC Grand Prix: Titled Tuesday Blitz"]
[Site "Chess.com"]
[Date "2020.07.21"]
[Round "1"]
[White "Evachess2006"]
[Black "Karacsonyi_Gellert"]
[Result "0-1"]
[WhiteElo "1607"]
[BlackElo "2464"]
[TimeControl "180+1"]
[EndTime "10:04:15 PDT"]
[Termination "Karacsonyi_Gellert won by checkmate"]

1. e4 {[%clk 0:02:48.1]} 1... c5 {[%clk 0:02:59.6]} 2. Nf3 {[%clk 0:02:41.9]}
2... Nc6 {[%clk 0:02:57.9]} 3. d4 {[%clk 0:02:38.8]} 3... cxd4 {[%clk
0:02:58.8]} 4. Nxd4 {[%clk 0:02:38.3]} 4... g6 {[%clk 0:02:58.4]} 5. Nxc6 {[%clk
0:02:37.2]} 5... bxc6 {[%clk 0:02:57.7]} 6. Nc3 {[%clk 0:02:34.2]} 6... Bg7
{[%clk 0:02:49.2]} 7. Bc4 {[%clk 0:02:31.7]} 7... d6 {[%clk 0:02:48.7]} 8. O-O
{[%clk 0:02:21.7]} 8... Nf6 {[%clk 0:02:49]} 9. Be3 {[%clk 0:01:53.8]} 9... O-O
{[%clk 0:02:45.8]} 10. Bd4 {[%clk 0:01:24.7]} 10... e5 {[%clk 0:02:41.4]} 11.
Be3 {[%clk 0:01:00.7]} 11... Bb7 {[%clk 0:02:39.8]} 12. Bb3 {[%clk 0:00:53]}
12... d5 {[%clk 0:02:22.2]} 13. exd5 {[%clk 0:00:36]} 13... cxd5 {[%clk
0:02:21.8]} 14. Bg5 {[%clk 0:00:18.3]} 14... d4 {[%clk 0:02:21.3]} 15. Ne2
{[%clk 0:00:11.7]} 15... a5 {[%clk 0:02:21.3]} 16. Bxf6 {[%clk 0:00:11.4]} 16...
Qxf6 {[%clk 0:02:20.9]} 17. Ng3 {[%clk 0:00:12.3]} 17... Qc6 {[%clk 0:02:20.2]}
18. c4 {[%clk 0:00:12.1]} 18... Qxg2# {[%clk 0:02:19.7]} 0-1

[Event "*** SCC Grand Prix: Titled Tuesday Blitz"]
[Site "Chess.com"]
[Date "2020.07.21"]
[Round "1"]
[White "Jojo_1608"]
[Black "MomchilPetkov"]
[Result "0-1"]
[WhiteElo "2236"]
[BlackElo "2589"]
[TimeControl "180+1"]
[EndTime "10:04:26 PDT"]
[Termination "MomchilPetkov won by resignation"]

1. d4 {[%clk 0:03:00.9]} 1... Nf6 {[%clk 0:02:59.9]} 2. c4 {[%clk 0:03:00.7]}
2... e6 {[%clk 0:03:00]} 3. Nc3 {[%clk 0:03:00.9]} 3... Bb4 {[%clk 0:02:59.8]}
4. e3 {[%clk 0:03:00.6]} 4... c5 {[%clk 0:02:58.9]} 5. Ne2 {[%clk 0:03:00.5]}
5... cxd4 {[%clk 0:02:56.4]} 6. exd4 {[%clk 0:02:55]} 6... O-O {[%clk
0:02:56.2]} 7. a3 {[%clk 0:02:54.9]} 7... Be7 {[%clk 0:02:56.8]} 8. Ng3 {[%clk
0:02:50.3]} 8... d5 {[%clk 0:02:53.7]} 9. c5 {[%clk 0:02:48.7]} 9... a5 {[%clk
0:02:35.8]} 10. Rb1 {[%clk 0:02:47.5]} 10... Nc6 {[%clk 0:02:07.6]} 11. Be2
{[%clk 0:02:38.8]} 11... e5 {[%clk 0:01:35.3]} 12. dxe5 {[%clk 0:02:32.6]} 12...
Nxe5 {[%clk 0:01:36.2]} 13. b4 {[%clk 0:02:28.9]} 13... axb4 {[%clk 0:01:35.2]}
14. axb4 {[%clk 0:02:29.8]} 14... d4 {[%clk 0:01:34.2]} 15. Nb5 {[%clk 0:02:11]}
15... d3 {[%clk 0:01:31.8]} 16. Bf3 {[%clk 0:02:03.2]} 16... Nxf3+ {[%clk
0:01:20.5]} 17. gxf3 {[%clk 0:01:59.2]} 17... Bh3 {[%clk 0:01:17.6]} 18. Be3
{[%clk 0:01:58.9]} 18... Ra2 {[%clk 0:01:06.1]} 19. Nd4 {[%clk 0:01:55.6]} 19...
d2+ {[%clk 0:01:06.4]} 20. Ke2 {[%clk 0:01:50.1]} 20... Nd5 {[%clk 0:01:06]} 21.
Bxd2 {[%clk 0:01:38.8]} 21... Nc3+ {[%clk 0:01:05.5]} 0-1

[Event "*** SCC Grand Prix: Titled Tuesday Blitz"]
[Site "Chess.com"]
[Date "2020.07.21"]
[Round "1"]
[White "Stormeman100100"]
[Black "luizwas"]
[Result "1-0"]
[WhiteElo "2468"]
[BlackElo "1766"]
[TimeControl "180+1"]
[EndTime "10:04:27 PDT"]
[Termination "Stormeman100100 won by resignation"]

1. e4 {[%clk 0:02:55.9]} 1... c5 {[%clk 0:02:59.5]} 2. a3 {[%clk 0:02:53.4]}
2... e6 {[%clk 0:03:00.4]} 3. b4 {[%clk 0:02:50]} 3... cxb4 {[%clk 0:03:01.3]}
4. axb4 {[%clk 0:02:49.9]} 4... Bxb4 {[%clk 0:03:02.2]} 5. Nf3 {[%clk 0:02:50]}
5... Be7 {[%clk 0:03:00.4]} 6. d4 {[%clk 0:02:49.1]} 6... d6 {[%clk 0:02:59.4]}
7. Bd3 {[%clk 0:02:48.3]} 7... Nd7 {[%clk 0:02:59.5]} 8. O-O {[%clk 0:02:47.7]}
8... Ngf6 {[%clk 0:02:59.8]} 9. Re1 {[%clk 0:02:47.2]} 9... O-O {[%clk
0:02:56.7]} 10. Bb2 {[%clk 0:02:46.3]} 10... b6 {[%clk 0:02:50.3]} 11. e5 {[%clk
0:02:42.4]} 11... dxe5 {[%clk 0:02:47.3]} 12. dxe5 {[%clk 0:02:43.3]} 12... Nd5
{[%clk 0:02:47.7]} 13. c4 {[%clk 0:02:43.2]} 13... Nc7 {[%clk 0:02:35.2]} 14.
Be4 {[%clk 0:02:41.2]} 14... Rb8 {[%clk 0:02:35.1]} 15. Rxa7 {[%clk 0:02:40.3]}
15... h6 {[%clk 0:02:27.7]} 16. Bc2 {[%clk 0:02:38.3]} 16... b5 {[%clk
0:02:27.3]} 17. Qd3 {[%clk 0:02:36.8]} 17... g6 {[%clk 0:02:27.2]} 18. Bc1
{[%clk 0:02:33.7]} 18... bxc4 {[%clk 0:02:25.6]} 19. Qxc4 {[%clk 0:02:32.6]}
19... Nb5 {[%clk 0:02:24]} 20. Ra2 {[%clk 0:02:20]} 20... Kg7 {[%clk 0:02:12.3]}
21. Qf4 {[%clk 0:02:09.3]} 21... Bg5 {[%clk 0:01:57.7]} 22. Nxg5 {[%clk
0:02:06.1]} 22... hxg5 {[%clk 0:01:58.6]} 23. Qxg5 {[%clk 0:02:06.3]} 23... Qxg5
{[%clk 0:01:59.1]} 24. Bxg5 {[%clk 0:02:07.2]} 24... Nd4 {[%clk 0:01:58.1]} 25.
Ba4 {[%clk 0:01:59.6]} 25... Nxe5 {[%clk 0:01:53]} 26. Bf4 {[%clk 0:01:56.5]}
26... Rxb1 {[%clk 0:01:46.5]} 27. Bxe5+ {[%clk 0:01:52.2]} 27... f6 {[%clk
0:01:45.9]} 28. Rxb1 {[%clk 0:01:49]} 28... fxe5 {[%clk 0:01:46.3]} 29. Rb8
{[%clk 0:01:45.4]} 29... Rd8 {[%clk 0:01:36.3]} 30. h3 {[%clk 0:01:42.4]} 30...
Nf5 {[%clk 0:01:31.6]} 31. Rc2 {[%clk 0:01:31.5]} 31... e4 {[%clk 0:01:24]} 1-0

[Event "*** SCC Grand Prix: Titled Tuesday Blitz"]
[Site "Chess.com"]
[Date "2020.07.21"]
[Round "1"]
[White "wannabe2700"]
[Black "TotsukaBlade"]
[Result "1-0"]
[WhiteElo "2680"]
[BlackElo "2333"]
[TimeControl "180+1"]
[EndTime "10:04:28 PDT"]
[Termination "wannabe2700 won by resignation"]

1. d4 {[%clk 0:02:59.7]} 1... d5 {[%clk 0:02:59.9]} 2. c4 {[%clk 0:02:59.8]}
2... dxc4 {[%clk 0:03:00.2]} 3. e4 {[%clk 0:02:59.7]} 3... Nf6 {[%clk
0:02:59.1]} 4. e5 {[%clk 0:03:00.1]} 4... Nd5 {[%clk 0:02:59.4]} 5. Bxc4 {[%clk
0:03:00.8]} 5... Nb6 {[%clk 0:02:59.8]} 6. Bd3 {[%clk 0:03:00.7]} 6... Nc6
{[%clk 0:03:00]} 7. Be3 {[%clk 0:03:00.6]} 7... e6 {[%clk 0:02:55.4]} 8. Nc3
{[%clk 0:02:57.8]} 8... Be7 {[%clk 0:02:45.1]} 9. a3 {[%clk 0:02:48.8]} 9... O-O
{[%clk 0:02:39.3]} 10. Nf3 {[%clk 0:02:48.3]} 10... Nd5 {[%clk 0:02:39.1]} 11.
O-O {[%clk 0:02:46.5]} 11... Nxe3 {[%clk 0:02:24.1]} 12. fxe3 {[%clk 0:02:46.3]}
12... Bg5 {[%clk 0:02:24.5]} 13. Nxg5 {[%clk 0:02:36.2]} 13... Qxg5 {[%clk
0:02:24.4]} 14. Rf3 {[%clk 0:02:36.8]} 14... b6 {[%clk 0:01:52.1]} 15. Rg3
{[%clk 0:02:35.3]} 15... Qe7 {[%clk 0:01:50.1]} 16. Qh5 {[%clk 0:01:57.6]} 16...
g6 {[%clk 0:01:39.8]} 17. Ne4 {[%clk 0:01:51.9]} 17... Kh8 {[%clk 0:01:30.1]}
18. Qh6 {[%clk 0:01:50.1]} 18... f5 {[%clk 0:01:19.7]} 19. exf6 {[%clk
0:01:46.9]} 19... Qf7 {[%clk 0:01:11.8]} 20. Ng5 {[%clk 0:01:45.3]} 20... Qg8
{[%clk 0:01:12.1]} 21. Rh3 {[%clk 0:01:24.2]} 21... Rxf6 {[%clk 0:01:08.5]} 22.
Nxh7 {[%clk 0:01:24]} 1-0

[Event "*** SCC Grand Prix: Titled Tuesday Blitz"]
[Site "Chess.com"]
[Date "2020.07.21"]
[Round "1"]
[White "chessbia"]
[Black "Borsuk_Konstantin"]
[Result "0-1"]
[WhiteElo "2185"]
[BlackElo "2566"]
[TimeControl "180+1"]
[EndTime "10:04:28 PDT"]
[Termination "Borsuk_Konstantin won by checkmate"]

1. d4 {[%clk 0:03:00.8]} 1... Nf6 {[%clk 0:02:58]} 2. c4 {[%clk 0:03:00.8]} 2...
e6 {[%clk 0:02:58.6]} 3. Nf3 {[%clk 0:03:00.7]} 3... b6 {[%clk 0:02:58.4]} 4. g3
{[%clk 0:03:01]} 4... Bb7 {[%clk 0:02:59]} 5. Bg2 {[%clk 0:03:01.9]} 5... Be7
{[%clk 0:02:59.2]} 6. O-O {[%clk 0:03:02.4]} 6... O-O {[%clk 0:02:59.3]} 7. Nc3
{[%clk 0:03:02.6]} 7... Ne4 {[%clk 0:02:59.2]} 8. Qc2 {[%clk 0:03:02.5]} 8...
Nxc3 {[%clk 0:02:58.7]} 9. Qxc3 {[%clk 0:03:02.1]} 9... a5 {[%clk 0:02:57.9]}
10. Rd1 {[%clk 0:03:02]} 10... d6 {[%clk 0:02:57.6]} 11. Ne1 {[%clk 0:02:58.4]}
11... Bxg2 {[%clk 0:02:55.5]} 12. Nxg2 {[%clk 0:02:59.3]} 12... Nd7 {[%clk
0:02:51.1]} 13. e4 {[%clk 0:02:57.8]} 13... Qc8 {[%clk 0:02:50.6]} 14. a4 {[%clk
0:02:53.9]} 14... Qb7 {[%clk 0:02:49.7]} 15. Qe3 {[%clk 0:02:47.9]} 15... Rfe8
{[%clk 0:02:46.5]} 16. b3 {[%clk 0:02:47.3]} 16... c6 {[%clk 0:02:34.9]} 17. Bb2
{[%clk 0:02:46.5]} 17... d5 {[%clk 0:02:34.8]} 18. cxd5 {[%clk 0:02:42.1]} 18...
cxd5 {[%clk 0:02:34.3]} 19. e5 {[%clk 0:02:42.6]} 19... b5 {[%clk 0:02:34.2]}
20. axb5 {[%clk 0:02:37.1]} 20... Qxb5 {[%clk 0:02:33.5]} 21. Ba3 {[%clk
0:02:32]} 21... Bb4 {[%clk 0:02:16.2]} 22. Nf4 {[%clk 0:02:27.1]} 22... g6
{[%clk 0:02:02]} 23. h4 {[%clk 0:02:26.6]} 23... Reb8 {[%clk 0:01:59.6]} 24. Rd3
{[%clk 0:02:22.5]} 24... Rc8 {[%clk 0:01:55.9]} 25. Kg2 {[%clk 0:02:20]} 25...
Rc2 {[%clk 0:01:55.2]} 26. h5 {[%clk 0:02:10.8]} 26... Nf8 {[%clk 0:01:53.7]}
27. hxg6 {[%clk 0:02:08.9]} 27... fxg6 {[%clk 0:01:52.2]} 28. Bxb4 {[%clk
0:02:02.4]} 28... Qxb4 {[%clk 0:01:51.5]} 29. Ra4 {[%clk 0:02:01.2]} 29... Qb6
{[%clk 0:01:44.3]} 30. b4 {[%clk 0:01:58.5]} 30... Rb2 {[%clk 0:01:38.8]} 31.
Rxa5 {[%clk 0:01:52.8]} 31... Rxa5 {[%clk 0:01:35.2]} 32. bxa5 {[%clk
0:01:53.1]} 32... Qxa5 {[%clk 0:01:35.9]} 33. Qf3 {[%clk 0:01:52.5]} 33... Rb1
{[%clk 0:01:22.6]} 34. Nh3 {[%clk 0:01:50.8]} 34... Qe1 {[%clk 0:01:19.9]} 35.
Ng5 {[%clk 0:01:41.3]} 35... Qh1# {[%clk 0:01:19.1]} 0-1

[Event "*** SCC Grand Prix: Titled Tuesday Blitz"]
[Site "Chess.com"]
[Date "2020.07.21"]
[Round "1"]
[White "GukeshDommaraju"]
[Black "1f3_2g41-0"]
[Result "1-0"]
[WhiteElo "2721"]
[BlackElo "2365"]
[TimeControl "180+1"]
[EndTime "10:04:38 PDT"]
[Termination "GukeshDommaraju won by resignation"]

1. d4 {[%clk 0:03:00.9]} 1... Nf6 {[%clk 0:02:55.2]} 2. c4 {[%clk 0:03:00.3]}
2... g6 {[%clk 0:02:54]} 3. Nc3 {[%clk 0:02:59.9]} 3... d5 {[%clk 0:02:48.8]} 4.
cxd5 {[%clk 0:02:59.5]} 4... Nxd5 {[%clk 0:02:49.7]} 5. e4 {[%clk 0:02:59.9]}
5... Nxc3 {[%clk 0:02:49.4]} 6. bxc3 {[%clk 0:03:00.8]} 6... Bg7 {[%clk
0:02:49.4]} 7. Nf3 {[%clk 0:03:01.1]} 7... c5 {[%clk 0:02:49.7]} 8. Be3 {[%clk
0:03:01.1]} 8... O-O {[%clk 0:02:49.9]} 9. Qd2 {[%clk 0:02:58.5]} 9... Qa5
{[%clk 0:02:49.4]} 10. Rc1 {[%clk 0:02:56.1]} 10... Bg4 {[%clk 0:02:47]} 11. d5
{[%clk 0:02:51.8]} 11... Bxf3 {[%clk 0:02:43.8]} 12. gxf3 {[%clk 0:02:52.7]}
12... Nd7 {[%clk 0:02:43.8]} 13. c4 {[%clk 0:02:52]} 13... Qxd2+ {[%clk
0:02:38.6]} 14. Kxd2 {[%clk 0:02:52.1]} 14... b6 {[%clk 0:02:35.1]} 15. f4
{[%clk 0:02:48.5]} 15... e5 {[%clk 0:02:33.8]} 16. fxe5 {[%clk 0:02:33]} 16...
Nxe5 {[%clk 0:02:32.3]} 17. Be2 {[%clk 0:02:30.8]} 17... Rad8 {[%clk 0:02:28.7]}
18. f4 {[%clk 0:02:30.1]} 18... Nc6 {[%clk 0:02:26.7]} 19. Bd3 {[%clk
0:02:27.6]} 19... Nd4 {[%clk 0:02:26.3]} 20. h4 {[%clk 0:02:20.8]} 20... Rfe8
{[%clk 0:02:16.9]} 21. h5 {[%clk 0:02:17.4]} 21... Rb8 {[%clk 0:02:02.9]} 22.
hxg6 {[%clk 0:02:07.2]} 22... hxg6 {[%clk 0:02:01.8]} 23. e5 {[%clk 0:02:07.6]}
23... Red8 {[%clk 0:01:46.8]} 24. Be4 {[%clk 0:01:33.2]} 24... b5 {[%clk
0:01:43]} 25. Bxd4 {[%clk 0:01:33.1]} 25... cxd4 {[%clk 0:01:41]} 26. c5 {[%clk
0:01:33.3]} 26... g5 {[%clk 0:01:34.1]} 27. c6 {[%clk 0:01:32.7]} 27... Rbc8
{[%clk 0:01:30.9]} 28. c7 {[%clk 0:01:32.4]} 28... Rd7 {[%clk 0:01:29.3]} 29. d6
{[%clk 0:01:32.6]} 29... gxf4 {[%clk 0:01:13.8]} 30. Bf5 {[%clk 0:01:32.7]}
30... Rcxc7 {[%clk 0:01:09.5]} 31. dxc7 {[%clk 0:01:32.4]} 1-0

[Event "*** SCC Grand Prix: Titled Tuesday Blitz"]
[Site "Chess.com"]
[Date "2020.07.21"]
[Round "1"]
[White "RaphCamora"]
[Black "Izoria123"]
[Result "0-1"]
[WhiteElo "2440"]
[BlackElo "2901"]
[TimeControl "180+1"]
[EndTime "10:04:45 PDT"]
[Termination "Izoria123 won by resignation"]

1. e4 {[%clk 0:02:58.9]} 1... c5 {[%clk 0:02:58.3]} 2. Nf3 {[%clk 0:02:58.3]}
2... a6 {[%clk 0:02:58.9]} 3. c3 {[%clk 0:02:55.8]} 3... e6 {[%clk 0:02:58.2]}
4. d4 {[%clk 0:02:55.6]} 4... d5 {[%clk 0:02:58.8]} 5. e5 {[%clk 0:02:55.7]}
5... Bd7 {[%clk 0:02:58.3]} 6. a3 {[%clk 0:02:39]} 6... cxd4 {[%clk 0:02:51.4]}
7. cxd4 {[%clk 0:02:38.5]} 7... Bb5 {[%clk 0:02:51.9]} 8. Bxb5+ {[%clk
0:02:35.6]} 8... axb5 {[%clk 0:02:52.8]} 9. O-O {[%clk 0:02:35.7]} 9... b4
{[%clk 0:02:51.8]} 10. Nbd2 {[%clk 0:02:33.7]} 10... bxa3 {[%clk 0:02:42.4]} 11.
bxa3 {[%clk 0:02:34.6]} 11... Ne7 {[%clk 0:02:41.9]} 12. Nb3 {[%clk 0:02:23.5]}
12... Nec6 {[%clk 0:02:41.2]} 13. a4 {[%clk 0:02:16.8]} 13... Nd7 {[%clk
0:02:37.5]} 14. Bd2 {[%clk 0:02:11.8]} 14... Nb6 {[%clk 0:02:33.2]} 15. Bg5
{[%clk 0:02:07.8]} 15... Qd7 {[%clk 0:02:30.4]} 16. a5 {[%clk 0:02:06]} 16...
Nc4 {[%clk 0:02:29.6]} 17. Qe1 {[%clk 0:01:57.5]} 17... Bb4 {[%clk 0:02:24.8]}
18. Qb1 {[%clk 0:01:44.1]} 18... O-O {[%clk 0:02:17.9]} 19. Bf4 {[%clk
0:01:36.9]} 19... h6 {[%clk 0:02:12.9]} 20. Qc1 {[%clk 0:01:32.8]} 20... Rfc8
{[%clk 0:02:09.8]} 21. Bxh6 {[%clk 0:01:31.7]} 21... gxh6 {[%clk 0:02:09]} 22.
Qxh6 {[%clk 0:01:32.2]} 22... Bf8 {[%clk 0:02:09.4]} 23. Qg5+ {[%clk 0:01:31.3]}
23... Bg7 {[%clk 0:02:09.7]} 24. Qh5 {[%clk 0:01:23.7]} 24... N4xa5 {[%clk
0:01:57.9]} 25. Nc5 {[%clk 0:01:22.1]} 25... Qe7 {[%clk 0:01:55.5]} 26. Nd3
{[%clk 0:00:52.6]} 26... Nb3 {[%clk 0:01:52.6]} 27. Rxa8 {[%clk 0:00:49.7]}
27... Rxa8 {[%clk 0:01:53.5]} 28. Nf4 {[%clk 0:00:48]} 28... Nbxd4 {[%clk
0:01:52.4]} 29. Ng5 {[%clk 0:00:47.6]} 29... Nxe5 {[%clk 0:01:51.9]} 30. Rc1
{[%clk 0:00:44.9]} 30... Qxg5 {[%clk 0:01:50.1]} 31. Qxg5 {[%clk 0:00:43.8]}
31... Ndf3+ {[%clk 0:01:50.2]} 0-1

[Event "*** SCC Grand Prix: Titled Tuesday Blitz"]
[Site "Chess.com"]
[Date "2020.07.21"]
[Round "1"]
[White "kidagent"]
[Black "Onegust"]
[Result "0-1"]
[WhiteElo "2223"]
[BlackElo "2576"]
[TimeControl "180+1"]
[EndTime "10:04:46 PDT"]
[Termination "Onegust won by resignation"]

1. e4 {[%clk 0:03:00.9]} 1... c5 {[%clk 0:02:54.2]} 2. Nf3 {[%clk 0:02:59.9]}
2... d6 {[%clk 0:02:53.3]} 3. d4 {[%clk 0:02:59.7]} 3... cxd4 {[%clk 0:02:54.2]}
4. Nxd4 {[%clk 0:02:59.6]} 4... Nf6 {[%clk 0:02:53.3]} 5. Nc3 {[%clk 0:03:00.1]}
5... a6 {[%clk 0:02:53.1]} 6. Bg5 {[%clk 0:02:59.7]} 6... Nbd7 {[%clk
0:02:52.4]} 7. Qe2 {[%clk 0:02:59.2]} 7... h6 {[%clk 0:02:43.4]} 8. Bh4 {[%clk
0:02:58.8]} 8... g6 {[%clk 0:02:33.7]} 9. O-O-O {[%clk 0:02:57.2]} 9... e5
{[%clk 0:02:20.8]} 10. Nb3 {[%clk 0:02:52.4]} 10... Be7 {[%clk 0:02:20.9]} 11.
Bxf6 {[%clk 0:02:45.3]} 11... Nxf6 {[%clk 0:02:19.8]} 12. h3 {[%clk 0:02:44.1]}
12... Be6 {[%clk 0:02:15]} 13. Nd5 {[%clk 0:02:42.6]} 13... Rc8 {[%clk
0:01:56.4]} 14. g4 {[%clk 0:02:40.9]} 14... Nxd5 {[%clk 0:01:40.7]} 15. exd5
{[%clk 0:02:39.3]} 15... Bd7 {[%clk 0:01:41.2]} 16. Bg2 {[%clk 0:02:37.3]} 16...
a5 {[%clk 0:01:32.4]} 17. Kb1 {[%clk 0:02:34.4]} 17... a4 {[%clk 0:01:29.9]} 18.
Nc1 {[%clk 0:02:33.8]} 18... a3 {[%clk 0:01:27.9]} 19. b3 {[%clk 0:02:32.8]}
19... Qc7 {[%clk 0:01:26.2]} 20. c4 {[%clk 0:02:30]} 20... b5 {[%clk 0:01:23.3]}
21. f4 {[%clk 0:02:13.3]} 21... O-O {[%clk 0:00:55.5]} 22. fxe5 {[%clk
0:02:05.1]} 22... dxe5 {[%clk 0:00:56.4]} 23. cxb5 {[%clk 0:02:01.6]} 23... Bxb5
{[%clk 0:00:54.8]} 24. Qd2 {[%clk 0:01:43.8]} 24... Bg5 {[%clk 0:00:53.2]} 25.
Qf2 {[%clk 0:01:41.7]} 25... Be3 {[%clk 0:00:45.9]} 0-1

[Event "*** SCC Grand Prix: Titled Tuesday Blitz"]
[Site "Chess.com"]
[Date "2020.07.21"]
[Round "1"]
[White "LawrenceTrent"]
[Black "JiiHart"]
[Result "1-0"]
[WhiteElo "2512"]
[BlackElo "2086"]
[TimeControl "180+1"]
[EndTime "10:04:51 PDT"]
[Termination "LawrenceTrent won by checkmate"]

1. e4 {[%clk 0:02:59.9]} 1... c5 {[%clk 0:02:58.6]} 2. Nc3 {[%clk 0:02:55.3]}
2... Nc6 {[%clk 0:02:57.7]} 3. Nf3 {[%clk 0:02:52.4]} 3... Nf6 {[%clk
0:02:56.3]} 4. Bb5 {[%clk 0:02:43.8]} 4... Nd4 {[%clk 0:02:53.7]} 5. e5 {[%clk
0:02:35.1]} 5... Nxb5 {[%clk 0:01:53.5]} 6. Nxb5 {[%clk 0:02:36]} 6... Nd5
{[%clk 0:01:50.5]} 7. Ng5 {[%clk 0:02:28.1]} 7... e6 {[%clk 0:01:31.3]} 8. Ne4
{[%clk 0:02:25.7]} 8... g6 {[%clk 0:00:58.7]} 9. c4 {[%clk 0:02:16.3]} 9... Nf4
{[%clk 0:00:48.6]} 10. d4 {[%clk 0:02:12.5]} 10... Nxg2+ {[%clk 0:00:42.7]} 11.
Kf1 {[%clk 0:02:12.4]} 11... Nh4 {[%clk 0:00:40.4]} 12. Nf6+ {[%clk 0:02:02.5]}
12... Ke7 {[%clk 0:00:38.8]} 13. Bg5 {[%clk 0:02:00.9]} 13... h6 {[%clk
0:00:29.4]} 14. Bxh4 {[%clk 0:01:59]} 14... g5 {[%clk 0:00:28.5]} 15. Bg3 {[%clk
0:01:59.3]} 15... Bg7 {[%clk 0:00:27.6]} 16. dxc5 {[%clk 0:01:59.1]} 16... Qa5
{[%clk 0:00:23]} 17. Qd6+ {[%clk 0:01:46.4]} 17... Kd8 {[%clk 0:00:22]} 18. Rd1
{[%clk 0:01:47.3]} 18... a6 {[%clk 0:00:20.3]} 19. Nxd7 {[%clk 0:01:46]} 19...
axb5 {[%clk 0:00:19.4]} 20. Nf6+ {[%clk 0:01:46.3]} 20... Bd7 {[%clk 0:00:17.8]}
21. Qxd7# {[%clk 0:01:45.9]} 1-0

[Event "*** SCC Grand Prix: Titled Tuesday Blitz"]
[Site "Chess.com"]
[Date "2020.07.21"]
[Round "1"]
[White "cassoulet"]
[Black "ajdemipopushi"]
[Result "1-0"]
[WhiteElo "2653"]
[BlackElo "2321"]
[TimeControl "180+1"]
[EndTime "10:04:58 PDT"]
[Termination "cassoulet won on time"]

1. e4 {[%clk 0:03:00.9]} 1... c5 {[%clk 0:02:59.9]} 2. Nf3 {[%clk 0:03:00.2]}
2... g6 {[%clk 0:03:00.3]} 3. h4 {[%clk 0:02:59.2]} 3... h5 {[%clk 0:03:00]} 4.
Bc4 {[%clk 0:02:58.4]} 4... Bg7 {[%clk 0:02:59.8]} 5. Nc3 {[%clk 0:02:58.4]}
5... Nc6 {[%clk 0:02:58.6]} 6. d3 {[%clk 0:02:58.6]} 6... d6 {[%clk 0:02:51.8]}
7. a3 {[%clk 0:02:57.9]} 7... Bg4 {[%clk 0:02:47]} 8. Bf4 {[%clk 0:02:50.3]}
8... a6 {[%clk 0:02:40.6]} 9. Qd2 {[%clk 0:02:48.7]} 9... Bxf3 {[%clk
0:02:39.4]} 10. gxf3 {[%clk 0:02:49.6]} 10... Nd4 {[%clk 0:02:30.1]} 11. Rh3
{[%clk 0:02:47.3]} 11... Qd7 {[%clk 0:02:29.2]} 12. Rg3 {[%clk 0:02:46.5]} 12...
e6 {[%clk 0:02:15.4]} 13. O-O-O {[%clk 0:02:45.2]} 13... Ne7 {[%clk 0:02:13.1]}
14. Rdg1 {[%clk 0:02:43.6]} 14... b5 {[%clk 0:01:53.9]} 15. Ba2 {[%clk 0:02:41]}
15... b4 {[%clk 0:01:28.8]} 16. axb4 {[%clk 0:02:37.8]} 16... cxb4 {[%clk
0:01:28.6]} 17. Ne2 {[%clk 0:02:37.2]} 17... Qa4 {[%clk 0:00:45]} 18. Kb1 {[%clk
0:02:33.8]} 18... b3 {[%clk 0:00:19.2]} 19. cxb3 {[%clk 0:02:34.7]} 19... Qc6
{[%clk 0:00:11.9]} 20. Nxd4 {[%clk 0:02:27.5]} 20... Bxd4 {[%clk 0:00:11.4]} 21.
Be3 {[%clk 0:02:13.6]} 21... Qb6 {[%clk 0:00:10.1]} 22. f4 {[%clk 0:02:11.4]}
22... O-O {[%clk 0:00:05.6]} 23. f5 {[%clk 0:02:11]} 23... exf5 {[%clk
0:00:05.1]} 24. b4 {[%clk 0:02:11.4]} 24... Kh7 {[%clk 0:00:03.8]} 25. Bh6
{[%clk 0:02:06.2]} 1-0